fUST/lending_fUST_20250511
["ID","MTS","AMOUNT","RATE_DAILY","PERIOD"]
[360755513,1746978644469,-400.0,0.00012824,2]
[360755514,1746978644478,-400.0,0.00012824,2]
[360755515,1746978644487,-400.0,0.00012824,2]
[360755516,1746978644496,-151.0,0.00012824,2]
[360755517,1746978644505,-733.72001703,0.00012843,2]
[360755518,1746978644514,-151.0,0.00012857,2]
[360755519,1746978644524,-151.0,0.00012857,2]
[360755520,1746978644532,-151.0,0.00012857,2]
[360755521,1746978644542,-151.0,0.00012857,2]
[360755522,1746978644551,-376.819461,0.00012857,2]
[360755523,1746978644560,-376.819461,0.00012857,2]
[360755524,1746978644569,-151.0,0.00012857,2]
[360755525,1746978644578,-151.0,0.00012858,2]
[360755526,1746978644587,-165.728719,0.00012858,2]
[360755527,1746978644597,-165.728719,0.00012858,2]
[360755528,1746978644606,-151.0,0.00012858,2]
[360755529,1746978644615,-151.0,0.00012858,2]
[360755530,1746978644624,-151.0,0.00012858,2]
[360755531,1746978644633,-235.151896,0.00012858,2]
[360755532,1746978644643,-400.0,0.00012858,2]
[360755533,1746978644652,-400.0,0.00012858,2]
[360755534,1746978644661,-151.0,0.00012859,2]
[360755535,1746978644670,-151.0,0.00012859,2]
[360755536,1746978644680,-165.728719,0.00012859,2]
[360755537,1746978644689,-165.728719,0.00012859,2]
[360755538,1746978644698,-151.0,0.00012859,2]
[360755539,1746978644707,-151.0,0.00012859,2]
[360755540,1746978644716,-151.0,0.00012859,2]
[360755541,1746978644725,-151.0,0.00012859,2]
[360755542,1746978644735,-384.732246,0.00012859,2]
[360755543,1746978644744,-384.732246,0.00012859,2]
[360755544,1746978644753,-214.956083,0.00012859,2]
[360755545,1746978644762,-214.956083,0.00012859,2]
[360755546,1746978644771,-274.076795,0.00012859,2]
[360755547,1746978644780,-196.13535,0.00012859,2]
[360755548,1746978644790,-196.13535,0.00012859,2]
[360755549,1746978644799,-151.0,0.0001286,2]
[360755550,1746978644808,-165.728719,0.0001286,2]
[360755551,1746978644817,-165.728719,0.0001286,2]
[360755552,1746978644827,-151.0,0.0001286,2]
[360755553,1746978644836,-2880.64093774,0.00012883,2]
[360755554,1746978644846,-151.0,0.000129,2]
[360755555,1746978644855,-5630.48218495,0.000129,2]
[360755556,1746978644864,-200.56413958,0.00012954,2]
[360755557,1746978644873,-400.0,0.00012968,2]
[360755558,1746978644882,-400.0,0.00012968,2]
[360755559,1746978644891,-420.46,0.00012968,2]
[360755560,1746978644900,-400.0,0.00012974,2]
[360755561,1746978644910,-1615.66,0.00012974,2]
[360755562,1746978644919,-400.0,0.00012974,2]
[360755563,1746978644929,-400.0,0.00012974,2]
[360755564,1746978644938,-400.0,0.00012974,2]
[360755565,1746978644947,-400.0,0.00012974,2]
[360755566,1746978644956,-400.0,0.00012974,2]
[360755567,1746978644965,-400.0,0.00012974,2]
[360755568,1746978644974,-4602.9,0.00012974,2]
[360755569,1746978644983,-400.0,0.00012974,2]
[360755570,1746978644992,-411.51949103,0.00012974,2]
[360755571,1746978645000,-421.5,0.00012974,2]
[360755572,1746978645010,-411.25072707,0.00012974,2]
[360755573,1746978645019,-400.0,0.00012974,2]
[360755574,1746978645028,-400.0,0.00012974,2]
[360755575,1746978645037,-400.0,0.00012974,2]
[360755576,1746978645046,-400.0,0.00012974,2]
[360755577,1746978645055,-400.0,0.00012974,2]
[360755578,1746978645064,-400.0,0.00012974,2]
[360755579,1746978645073,-400.0,0.00012974,2]
[360755580,1746978645082,-400.0,0.00012974,2]
[360755581,1746978645091,-400.0,0.00012974,2]
[360755582,1746978645100,-400.0,0.00012974,2]
[360755583,1746978645109,-400.0,0.00012974,2]
[360755584,1746978645119,-400.0,0.00012974,2]
[360755585,1746978645128,-400.0,0.00012974,2]
[360755586,1746978645138,-400.0,0.00012975,2]
[360755587,1746978645147,-400.0,0.00012975,2]
[360755588,1746978645156,-6494.35,0.00012975,2]
[360755589,1746978645165,-400.0,0.00012975,2]
[360755590,1746978645174,-400.0,0.00012975,2]
[360755591,1746978645185,-400.0,0.00012975,2]
[360755592,1746978645195,-400.0,0.00012983,2]
[360755593,1746978645204,-531.06,0.00012983,2]
[360755594,1746978645213,-400.0,0.00012983,2]
[360755595,1746978645222,-419.15006573,0.00012983,2]
[360755596,1746978645231,-400.0,0.00012983,2]
[360755597,1746978645241,-400.0,0.00012983,2]
[360755598,1746978645262,-400.0,0.00012983,2]
[360755599,1746978645272,-546.81,0.00012983,2]
[360755600,1746978645281,-400.0,0.00012983,2]
[360755601,1746978645292,-400.0,0.00012983,2]
[360755602,1746978645304,-1203.07,0.00012983,2]
[360755603,1746978645314,-400.0,0.00012983,2]
[360755604,1746978645323,-400.0,0.00012983,2]
[360755605,1746978645333,-400.0,0.00012983,2]
[360755606,1746978645343,-400.0,0.00012983,2]
[360755607,1746978645353,-400.0,0.00012983,2]
[360755608,1746978645362,-400.0,0.00012983,2]
[360755609,1746978645372,-1213.06,0.00012983,2]
[360755610,1746978645383,-400.0,0.00012983,2]
[360755611,1746978645393,-400.0,0.00012983,2]
[360755612,1746978645403,-400.0,0.00012983,2]
[360755613,1746978645413,-400.0,0.00012983,2]
[360755614,1746978645422,-400.0,0.00012983,2]
[360755615,1746978645433,-9600.09,0.00012983,2]
[360755616,1746978645442,-400.0,0.00012983,2]
[360755617,1746978645452,-400.0,0.00012983,2]
[360755618,1746978645461,-400.0,0.00012983,2]
[360755619,1746978645470,-400.0,0.00012983,2]
[360755620,1746978645480,-400.0,0.00012986,2]
[360755621,1746978645489,-400.0,0.00012986,2]
[360755622,1746978645498,-400.0,0.00012986,2]
[360755623,1746978645507,-295.587976,0.00012988,2]
[360755624,1746978645517,-295.587976,0.00012988,2]
[360755625,1746978645526,-196.13535,0.00012988,2]
[360755626,1746978645535,-196.13535,0.00012988,2]
[360755627,1746978645544,-400.0,0.00012988,2]
[360755628,1746978645553,-400.0,0.00012988,2]
[360755629,1746978645562,-400.0,0.00012988,2]
[360755630,1746978645571,-605.81,0.00012988,2]
[360755631,1746978645580,-162.846974,0.00012988,2]
[360755632,1746978645589,-3072.78,0.00012988,2]
[360755633,1746978645599,-567.48852949,0.00013079,2]
[360755634,1746978645608,-400.0,0.0001308,2]
[360755635,1746978645617,-307.51587164,0.0001308,2]
[360755636,1746978645627,-400.0,0.0001308,2]
[360755637,1746978645636,-400.0,0.0001308,2]
[360755638,1746978645645,-400.0,0.0001308,2]
[360755639,1746978645654,-400.0,0.0001308,2]
[360755640,1746978645663,-531.7489157,0.0001308,2]
[360755641,1746978645672,-400.0,0.0001308,2]
[360755642,1746978645683,-400.0,0.0001308,2]
[360755643,1746978645692,-400.0,0.0001308,2]
[360755644,1746978645701,-400.0,0.0001308,2]
[360755645,1746978645710,-400.0,0.0001308,2]
[360755646,1746978645869,-400.0,0.00013081,2]
[360755647,1746978645879,-400.0,0.00013081,2]
[360755648,1746978645888,-400.0,0.00013081,2]
[360755649,1746978645897,-413.58811443,0.00013081,2]
[360755650,1746978645907,-400.0,0.00013081,2]
[360755651,1746978645915,-400.0,0.00013081,2]
[360755652,1746978645924,-400.0,0.00013081,2]
[360755653,1746978645936,-400.0,0.00013081,2]
[360755655,1746978645945,-467.42,0.00013081,2]
[360755656,1746978645954,-400.0,0.00013081,2]
[360755657,1746978645963,-400.0,0.00013081,2]
[360755658,1746978645972,-1216.23,0.00013081,2]
[360755659,1746978645981,-400.0,0.00013081,2]
[360755660,1746978645990,-400.0,0.00013081,2]
[360755661,1746978645999,-400.0,0.00013081,2]
[360755662,1746978646008,-400.0,0.00013081,2]
[360755663,1746978646017,-400.0,0.00013081,2]
[360755664,1746978646025,-400.0,0.00013081,2]
[360755665,1746978646035,-400.0,0.00013081,2]
[360755666,1746978646044,-400.0,0.00013081,2]
[360755667,1746978646053,-400.0,0.00013081,2]
[360755668,1746978646062,-400.0,0.00013081,2]
[360755669,1746978646071,-5837.09,0.00013081,2]
[360755670,1746978646080,-400.0,0.00013081,2]
[360755671,1746978646090,-400.0,0.00013081,2]
[360755672,1746978646099,-231.99827921,0.00013081,2]
[360755673,1746978646108,-400.0,0.00013081,2]
[360755674,1746978646118,-400.0,0.00013081,2]
[360755675,1746978646127,-400.0,0.00013081,2]
[360755676,1746978646136,-400.0,0.00013081,2]
[360755677,1746978646145,-196.13535,0.00013084,2]
[360755678,1746978646154,-196.135345,0.00013084,2]
[360755679,1746978646163,-295.587976,0.0001309,2]
[360755680,1746978646172,-295.587976,0.0001309,2]
[360755681,1746978646182,-400.0,0.0001309,2]
[360755682,1746978646191,-400.0,0.0001309,2]
[360755683,1746978646201,-151.0,0.00013091,2]
[360755684,1746978646210,-376.819461,0.00013091,2]
[360755685,1746978646219,-376.819461,0.00013091,2]
[360755686,1746978646228,-151.0,0.00013091,2]
[360755687,1746978646238,-151.0,0.00013091,2]
[360755688,1746978646246,-502.27410259,0.00013092,2]
[360755689,1746978646256,-500.0,0.00013092,2]
[360755690,1746978646265,-384.732246,0.00013098,2]
[360755691,1746978646274,-384.732246,0.00013098,2]
[360755692,1746978646283,-214.956083,0.00013098,2]
[360755693,1746978646293,-214.956083,0.00013098,2]
[360755694,1746978646306,-400.0,0.00013098,2]
[360755695,1746978646315,-400.0,0.00013098,2]
[360755696,1746978646324,-400.0,0.00013098,2]
[360755697,1746978646334,-400.0,0.00013098,2]
[360755698,1746978646343,-400.0,0.00013098,2]
[360755699,1746978646353,-400.0,0.00013098,2]
[360755700,1746978646362,-500.0,0.00013109,2]
[360755701,1746978646373,-500.0,0.00013109,2]
[360755702,1746978646382,-500.0,0.00013109,2]
[360755703,1746978646391,-500.0,0.00013109,2]
[360755704,1746978646400,-500.0,0.00013109,2]
[360755705,1746978646409,-500.0,0.00013109,2]
[360755706,1746978646419,-571.22256152,0.00013109,2]
[360755707,1746978646428,-500.0,0.00013109,2]
[360755708,1746978646438,-554.10124577,0.00013109,2]
[360755709,1746978646447,-501.52088128,0.00013109,2]
[360755710,1746978646456,-500.0,0.00013109,2]
[360755711,1746978646465,-223.53744253,0.00013109,2]
[360755712,1746978646475,-157.36808806,0.00013109,2]
[360755713,1746978646485,-500.36750895,0.00013109,2]
[360755714,1746978646494,-501.61233605,0.00013109,2]
[360755715,1746978646503,-500.0,0.00013109,2]
[360755716,1746978646512,-500.0,0.00013109,2]
[360755717,1746978646521,-500.0,0.00013109,2]
[360755718,1746978646530,-500.0,0.00013109,2]
[360755719,1746978646540,-502.72612837,0.00013109,2]
[360755720,1746978646551,-500.0,0.00013109,2]
[360755721,1746978646561,-160.86154812,0.00013109,2]
[360755722,1746978646573,-151.0,0.00013132,2]
[360755723,1746978646583,-151.0,0.00013132,2]
[360755724,1746978646592,-151.0,0.00013132,2]
[360755725,1746978646601,-400.0,0.00013132,2]
[360755726,1746978646610,-400.0,0.00013132,2]
[360755727,1746978646620,-151.0,0.00013133,2]
[360755728,1746978646629,-151.0,0.00013133,2]
[360755729,1746978646638,-151.0,0.00013133,2]
[360755730,1746978646647,-165.728719,0.00013133,2]
[360755731,1746978646657,-165.728719,0.00013133,2]
[360755732,1746978646666,-151.0,0.00013133,2]
[360755733,1746978646675,-151.0,0.00013133,2]
[360755734,1746978646685,-151.0,0.00013133,2]
[360755735,1746978646694,-151.0,0.00013133,2]
[360755736,1746978646703,-376.819461,0.00013133,2]
[360755737,1746978646712,-376.819461,0.00013133,2]
[360755738,1746978646721,-295.587976,0.00013133,2]
[360755739,1746978646730,-295.5879685,0.00013133,2]
[360755740,1746978646739,-151.0,0.00013133,2]
[360755741,1746978646748,-151.0,0.00013134,2]
[360755742,1746978646758,-172.718298,0.00013134,2]
[360755743,1746978646766,-151.0,0.00013134,2]
[360755744,1746978646775,-151.0,0.00013134,2]
[360755745,1746978646784,-151.0,0.00013134,2]
[360755746,1746978646793,-151.0,0.00013134,2]
[360755747,1746978646802,-151.0,0.00013134,2]
[360755748,1746978646811,-151.0,0.00013134,2]
[360755749,1746978646820,-177.349862,0.00013134,2]
[360755750,1746978646828,-500.48186445,0.00013135,2]
[360755751,1746978646837,-500.68659326,0.00013135,2]
[360755752,1746978646846,-408.36227071,0.00013135,2]
[360755753,1746978646855,-384.732246,0.00013136,2]
[360755754,1746978646864,-384.732246,0.00013136,2]
[360755755,1746978646873,-214.956083,0.00013136,2]
[360755756,1746978646882,-214.956083,0.00013136,2]
[360755758,1746978646891,-504.23070079,0.00013152,2]
[360755760,1746978646899,-500.0,0.00013152,2]
[360755761,1746978646909,-500.0,0.00013157,2]
[360755762,1746978646917,-500.0,0.00013157,2]
[360755763,1746978646926,-500.0,0.00013157,2]
[360755764,1746978646936,-500.0,0.00013182,2]
[360755765,1746978646945,-500.0,0.00013182,2]
[360755766,1746978646955,-500.0,0.00013182,2]
[360755767,1746978646963,-151.0,0.00013209,2]
[360755768,1746978646972,-151.0,0.00013209,2]
[360755769,1746978646981,-400.0,0.00013242,2]
[360755770,1746978646990,-400.0,0.00013242,2]
[360755771,1746978646999,-420.46,0.00013242,2]
[360755772,1746978647008,-408.43778808,0.00013248,2]
[360755773,1746978647018,-1615.66,0.00013248,2]
[360755774,1746978647027,-400.0,0.00013248,2]
[360755776,1746978647036,-400.0,0.00013248,2]
[360755777,1746978647045,-400.0,0.00013248,2]
[360755779,1746978647054,-400.0,0.00013248,2]
[360755780,1746978647063,-4602.9,0.00013248,2]
[360755781,1746978647072,-400.0,0.00013248,2]
[360755782,1746978647081,-421.5,0.00013248,2]
[360755784,1746978647090,-405.42,0.00013248,2]
[360755785,1746978647099,-400.0,0.00013248,2]
[360755786,1746978647108,-155.63585643,0.00013248,2]
[360755787,1746978647118,-335.42,0.00013248,2]
[360755788,1746978647127,-400.0,0.00013248,2]
[360755789,1746978647136,-400.0,0.00013248,2]
[360755790,1746978647145,-400.0,0.00013248,2]
[360755791,1746978647155,-421.73,0.00013248,2]
[360755792,1746978647164,-277.87480249,0.00013248,2]
[360755793,1746978647173,-400.0,0.00013248,2]
[360755794,1746978647184,-400.0,0.00013248,2]
[360755795,1746978647193,-400.0,0.00013249,2]
[360755796,1746978647202,-400.0,0.00013249,2]
[360755798,1746978647211,-6494.35,0.00013249,2]
[360755800,1746978647221,-400.0,0.00013249,2]
[360755801,1746978647230,-400.0,0.00013249,2]
[360755803,1746978647239,-400.0,0.00013249,2]
[360755804,1746978647249,-400.0,0.00013257,2]
[360755805,1746978647258,-400.0,0.00013257,2]
[360755806,1746978647268,-400.0,0.00013257,2]
[360755807,1746978647277,-400.0,0.00013257,2]
[360755808,1746978647286,-345.49759679,0.00013257,2]
[360755809,1746978647297,-400.0,0.00013257,2]
[360755810,1746978647308,-400.0,0.00013257,2]
[360755811,1746978647317,-1203.07,0.00013257,2]
[360755812,1746978647326,-466.53,0.00013257,2]
[360755813,1746978647336,-243.01314045,0.00013257,2]
[360755814,1746978647346,-400.0,0.00013257,2]
[360755815,1746978647355,-400.0,0.00013257,2]
[360755816,1746978647365,-400.0,0.00013257,2]
[360755818,1746978647378,-400.0,0.00013257,2]
[360755820,1746978647388,-1213.06,0.00013257,2]
[360755822,1746978647398,-400.0,0.00013257,2]
[360755824,1746978647407,-400.0,0.00013257,2]
[360755826,1746978647416,-400.0,0.00013257,2]
[360755828,1746978647425,-400.0,0.00013257,2]
[360755830,1746978647436,-400.0,0.00013257,2]
[360755832,1746978647446,-9600.09,0.00013257,2]
[360755834,1746978647456,-400.0,0.00013257,2]
[360755836,1746978647466,-400.0,0.00013257,2]
[360755838,1746978647475,-400.0,0.00013257,2]
[360755840,1746978647484,-475.84,0.00013257,2]
[360755842,1746978647493,-400.0,0.0001326,2]
[360755844,1746978647502,-400.0,0.0001326,2]
[360755846,1746978647511,-400.0,0.0001326,2]
[360755848,1746978647521,-400.0,0.00013262,2]
[360755850,1746978647530,-400.0,0.00013262,2]
[360755852,1746978647539,-400.0,0.00013262,2]
[360755854,1746978647548,-605.81,0.00013262,2]
[360755856,1746978647558,-3072.78,0.00013262,2]
[360755858,1746978647567,-500.0,0.00013278,2]
[360755860,1746978647576,-500.0,0.00013298,2]
[360755862,1746978647585,-500.0,0.00013298,2]
[360755863,1746978647594,-400.0,0.00013353,2]
[360755864,1746978647603,-400.0,0.00013353,2]
[360755865,1746978647612,-400.0,0.00013353,2]
[360755866,1746978647621,-400.0,0.00013353,2]
[360755867,1746978647631,-400.0,0.00013353,2]
[360755868,1746978647640,-158.55824733,0.00013353,2]
[360755869,1746978647649,-400.0,0.00013353,2]
[360755870,1746978647659,-224.72330707,0.00013353,2]
[360755871,1746978647668,-400.0,0.00013353,2]
[360755872,1746978647677,-400.0,0.00013353,2]
[360755873,1746978647690,-400.0,0.00013355,2]
[360755874,1746978647699,-400.0,0.00013355,2]
[360755875,1746978647708,-400.0,0.00013355,2]
[360755876,1746978647718,-400.0,0.00013355,2]
[360755877,1746978647728,-400.0,0.00013355,2]
[360755878,1746978647737,-400.0,0.00013355,2]
[360755879,1746978647746,-400.0,0.00013355,2]
[360755880,1746978647755,-467.42,0.00013355,2]
[360755881,1746978647764,-400.0,0.00013355,2]
[360755882,1746978647774,-400.0,0.00013355,2]
[360755883,1746978647783,-1216.23,0.00013355,2]
[360755884,1746978647792,-400.0,0.00013355,2]
[360755885,1746978647801,-400.0,0.00013355,2]
[360755886,1746978647811,-400.0,0.00013355,2]
[360755887,1746978647820,-400.0,0.00013355,2]
[360755888,1746978647829,-400.0,0.00013355,2]
[360755889,1746978647838,-416.0219928,0.00013355,2]
[360755890,1746978647848,-400.0,0.00013355,2]
[360755891,1746978647857,-400.0,0.00013355,2]
[360755892,1746978647866,-400.0,0.00013355,2]
[360755893,1746978647876,-400.0,0.00013355,2]
[360755894,1746978647885,-5837.09,0.00013355,2]
[360755895,1746978647894,-400.0,0.00013355,2]
[360755896,1746978647903,-400.0,0.00013355,2]
[360755897,1746978647912,-400.0,0.00013355,2]
[360755898,1746978647921,-400.0,0.00013355,2]
[360755899,1746978647932,-400.0,0.00013355,2]
[360755900,1746978647942,-400.0,0.00013355,2]
[360755901,1746978647951,-501.47085734,0.00013359,2]
[360755902,1746978647960,-400.0,0.00013364,2]
[360755903,1746978647970,-400.0,0.00013364,2]
[360755904,1746978647979,-151.0,0.00013365,2]
[360755905,1746978647988,-376.819461,0.00013365,2]
[360755906,1746978647997,-376.819461,0.00013365,2]
[360755907,1746978648006,-151.0,0.00013365,2]
[360755908,1746978648016,-151.0,0.00013372,2]
[360755909,1746978648025,-261.738544,0.00013372,2]
[360755910,1746978648034,-384.732246,0.00013372,2]
[360755911,1746978648044,-384.732246,0.00013372,2]
[360755912,1746978648053,-214.956083,0.00013372,2]
[360755913,1746978648066,-214.956083,0.00013372,2]
[360755914,1746978648075,-400.0,0.00013372,2]
[360755915,1746978648084,-400.0,0.00013372,2]
[360755916,1746978648093,-400.0,0.00013372,2]
[360755917,1746978648103,-400.0,0.00013372,2]
[360755918,1746978648112,-400.0,0.00013372,2]
[360755919,1746978648121,-400.0,0.00013372,2]
[360755920,1746978648130,-500.0,0.00013387,2]
[360755921,1746978648139,-151.0,0.00013406,2]
[360755922,1746978648148,-400.0,0.00013406,2]
[360755923,1746978648158,-400.0,0.00013406,2]
[360755924,1746978648167,-151.0,0.00013407,2]
[360755925,1746978648176,-165.728719,0.00013407,2]
[360755926,1746978648187,-165.728719,0.00013407,2]
[360755927,1746978648196,-190.135329,0.00013407,2]
[360755928,1746978648204,-151.0,0.00013407,2]
[360755929,1746978648213,-151.0,0.00013407,2]
[360755930,1746978648222,-376.819461,0.00013407,2]
[360755931,1746978648231,-376.819461,0.00013407,2]
[360755932,1746978648239,-151.0,0.00013407,2]
[360755933,1746978648248,-151.819137,0.00013408,2]
[360755934,1746978648258,-151.0,0.00013408,2]
[360755935,1746978648267,-151.0,0.00013408,2]
[360755936,1746978648276,-235.563923,0.00013408,2]
[360755937,1746978648285,-151.0,0.00013408,2]
[360755938,1746978648294,-151.0,0.0001341,2]
[360755939,1746978648307,-151.0,0.00013483,2]
[360755940,1746978648316,-165.728719,0.00013483,2]
[360755941,1746978648326,-165.728719,0.00013483,2]
[360755942,1746978648335,-151.0,0.00013512,2]
[360755943,1746978648346,-384.732246,0.00013512,2]
[360755944,1746978648356,-384.732246,0.00013512,2]
[360755945,1746978648366,-214.956083,0.00013512,2]
[360755946,1746978648376,-214.956083,0.00013512,2]
[360755947,1746978648386,-400.0,0.00013516,2]
[360755948,1746978648396,-400.0,0.00013516,2]
[360755949,1746978648406,-420.46,0.00013516,2]
[360755950,1746978648415,-1615.66,0.00013522,2]
[360755951,1746978648425,-400.0,0.00013522,2]
[360755952,1746978648435,-400.0,0.00013522,2]
[360755953,1746978648444,-400.0,0.00013522,2]
[360755954,1746978648453,-400.0,0.00013522,2]
[360755955,1746978648464,-4602.9,0.00013522,2]
[360755956,1746978648474,-400.0,0.00013522,2]
[360755957,1746978648483,-421.5,0.00013522,2]
[360755958,1746978648493,-400.0,0.00013522,2]
[360755959,1746978648613,-400.0,0.00013522,2]
[360755960,1746978648623,-400.0,0.00013522,2]
[360755961,1746978648632,-400.0,0.00013522,2]
[360755962,1746978648642,-400.0,0.00013522,2]
[360755963,1746978648651,-400.0,0.00013522,2]
[360755964,1746978648661,-400.0,0.00013523,2]
[360755965,1746978648671,-400.0,0.00013523,2]
[360755966,1746978648680,-6494.35,0.00013523,2]
[360755967,1746978648690,-400.0,0.00013523,2]
[360755968,1746978648700,-400.0,0.00013523,2]
[360755969,1746978648709,-400.0,0.00013523,2]
[360755970,1746978648719,-400.0,0.00013531,2]
[360755971,1746978648728,-400.0,0.00013531,2]
[360755972,1746978648737,-400.0,0.00013531,2]
[360755973,1746978648747,-298.32,0.00013531,2]
[360755974,1746978648757,-400.0,0.00013531,2]
[360755975,1746978648766,-400.0,0.00013531,2]
[360755976,1746978648775,-1203.07,0.00013531,2]
[360755977,1746978648785,-541.38,0.00013531,2]
[360755978,1746978648793,-400.0,0.00013531,2]
[360755979,1746978648803,-400.0,0.00013531,2]
[360755980,1746978648813,-400.0,0.00013531,2]
[360755981,1746978648822,-1213.06,0.00013531,2]
[360755982,1746978648831,-400.0,0.00013531,2]
[360755983,1746978648841,-400.0,0.00013531,2]
[360755984,1746978648850,-400.0,0.00013531,2]
[360755985,1746978648860,-400.0,0.00013531,2]
[360755986,1746978648869,-340.17,0.00013531,2]
[360755987,1746978648878,-9600.09,0.00013531,2]
[360755988,1746978648888,-400.0,0.00013531,2]
[360755989,1746978648897,-400.0,0.00013531,2]
[360755990,1746978648907,-400.0,0.00013531,2]
[360755991,1746978648916,-400.0,0.00013533,2]
[360755992,1746978648926,-400.0,0.00013533,2]
[360755993,1746978648936,-400.0,0.00013533,2]
[360755994,1746978648945,-400.0,0.00013536,2]
[360755995,1746978648955,-170.32,0.00013536,2]
[360755996,1746978648964,-400.0,0.00013536,2]
[360755997,1746978648973,-605.81,0.00013536,2]
[360755998,1746978648986,-3072.78,0.00013536,2]
[360755999,1746978648996,-5630.48218492,0.00013624,2]
[360756000,1746978649006,-400.0,0.00013627,2]
[360756001,1746978649015,-400.0,0.00013627,2]
[360756002,1746978649025,-400.0,0.00013627,2]
[360756003,1746978649034,-407.90230543,0.00013627,2]
[360756004,1746978649043,-400.0,0.00013627,2]
[360756005,1746978649053,-400.0,0.00013627,2]
[360756006,1746978649063,-400.0,0.00013629,2]
[360756007,1746978649073,-457.6,0.00013629,2]
[360756008,1746978649082,-400.0,0.00013629,2]
[360756009,1746978649092,-400.0,0.00013629,2]
[360756010,1746978649101,-400.0,0.00013629,2]
[360756011,1746978649111,-400.0,0.00013629,2]
[360756012,1746978649120,-400.0,0.00013629,2]
[360756013,1746978649130,-467.42,0.00013629,2]
[360756014,1746978649140,-400.0,0.00013629,2]
[360756015,1746978649150,-400.0,0.00013629,2]
[360756016,1746978649159,-1216.23,0.00013629,2]
[360756017,1746978649169,-400.0,0.00013629,2]
[360756018,1746978649178,-400.0,0.00013629,2]
[360756019,1746978649190,-400.0,0.00013629,2]
[360756020,1746978649200,-400.0,0.00013629,2]
[360756021,1746978649210,-400.0,0.00013629,2]
[360756022,1746978649219,-400.0,0.00013629,2]
[360756023,1746978649229,-310.80507695,0.00013629,2]
[360756024,1746978649238,-478.51,0.00013629,2]
[360756025,1746978649248,-5837.09,0.00013629,2]
[360756026,1746978649258,-400.0,0.00013629,2]
[360756027,1746978649268,-400.0,0.00013629,2]
[360756028,1746978649277,-272.75,0.00013629,2]
[360756029,1746978649288,-400.0,0.00013629,2]
[360756030,1746978649301,-400.0,0.00013629,2]
[360756031,1746978649310,-400.0,0.00013638,2]
[360756032,1746978649319,-394.3,0.00013638,2]
[360756033,1746978649329,-151.0,0.00013639,2]
[360756034,1746978649341,-376.819461,0.00013639,2]
[360756035,1746978649351,-376.819461,0.00013639,2]
[360756036,1746978649360,-265.711611,0.00013639,2]
[360756037,1746978649371,-384.732246,0.00013646,2]
[360756038,1746978649381,-384.732246,0.00013646,2]
[360756039,1746978649391,-214.956083,0.00013646,2]
[360756040,1746978649401,-214.956083,0.00013646,2]
[360756041,1746978649410,-400.0,0.00013646,2]
[360756042,1746978649419,-400.0,0.00013646,2]
[360756043,1746978649429,-400.0,0.00013646,2]
[360756044,1746978649441,-400.0,0.00013646,2]